bitfinex-derivatives/quotes_BNBF0:USTF0_20250116
["timestamp","ask_amount","ask_price","bid_price","bid_amount"]
[1736985833157,3.34949629,715.15,714.07,5.103]
[1736985833360,3.34949629,715.14,714.07,5.103]
[1736985833657,3.34949629,715.13,714.07,5.103]
[1736985833858,3.34949629,715.12,714.07,5.103]
[1736985834158,3.34949629,715.11,714.07,5.103]
[1736985834457,3.34949629,715.1,714.07,5.103]
[1736985834658,3.34949629,715.09,714.07,5.103]
[1736985834854,3.34949629,715.08,714.07,5.103]
[1736985835055,3.37209858,715.07,714.07,5.103]
[1736985835360,3.09240569,715.06,714.07,5.103]
[1736985835558,3.09240569,715.05,714.07,5.103]
[1736985835760,3.09240569,715.04,714.07,5.103]
[1736985835953,3.09240569,715.03,714.07,5.103]
[1736985836159,3.37211814,715.02,714.07,5.103]
[1736985836459,3.09240569,715.01,714.07,5.103]
[1736985836659,3.09240569,715.0,714.07,5.103]
[1736985836858,3.09240569,714.99,714.07,5.103]
[1736985837060,3.09096728,714.98,714.07,5.103]
[1736985837256,3.09096728,714.97,714.07,5.103]
[1736985837456,3.09096728,714.96,714.07,5.103]
[1736985837659,3.09096728,714.95,714.07,5.103]
[1736985837859,3.09096728,714.94,714.07,5.103]
[1736985838060,0.27971245,715.02,714.07,5.103]
[1736985838061,3.09096728,714.93,714.07,5.103]
[1736985838255,3.09096728,714.92,714.07,5.103]
[1736985838456,3.09096728,714.91,714.07,5.103]
[1736985838654,3.09096728,714.9,714.07,5.103]
[1736985838853,3.09096728,714.89,714.07,5.103]
[1736985839055,3.09096728,714.88,714.07,5.103]
[1736985839256,3.09096728,714.87,714.07,5.103]
[1736985839454,3.09096728,714.86,714.07,5.103]
[1736985839760,3.09096728,714.85,714.07,5.103]
[1736985840056,3.09096728,714.84,714.07,5.103]
[1736985840362,3.09096728,714.83,714.07,5.103]
[1736985840660,0.27971245,715.02,714.07,5.103]
[1736985840661,3.37075799,714.82,714.07,5.103]
[1736985840864,3.08639125,714.81,714.07,5.103]
[1736985841060,3.08639125,714.8,714.07,5.103]
[1736985841259,3.08639125,714.79,714.07,5.103]
[1736985841460,3.08642976,714.78,714.07,5.103]
[1736985841662,3.08642976,714.77,714.07,5.103]
[1736985841862,3.08642976,714.76,714.07,5.103]
[1736985842059,3.08642976,714.75,714.07,5.103]
[1736985842264,3.08642976,714.74,714.07,5.103]
[1736985842464,0.27979071,714.82,714.07,5.103]
[1736985842662,1.88173513,714.81,714.07,5.103]
[1736985842858,1.88173513,714.8,714.07,5.103]
[1736985843060,1.88173513,714.79,714.07,5.103]
[1736985843262,1.88173513,714.78,714.07,5.103]
[1736985843463,1.88173513,714.77,714.07,5.103]
[1736985843763,1.88173513,714.76,714.07,5.103]
[1736985843962,1.88173513,714.75,714.07,5.103]
[1736985844163,1.88173513,714.74,714.07,5.103]
[1736985844363,1.88173513,714.73,714.07,5.103]
[1736985844663,0.27979071,714.82,714.07,5.103]
[1736985844856,1.8813652,714.81,714.07,5.103]
[1736985845061,1.8813652,714.8,714.07,5.103]
[1736985845261,1.8813652,714.79,714.07,5.103]
[1736985845460,1.8813652,714.78,714.07,5.103]
[1736985845658,1.8813652,714.77,714.07,5.103]
[1736985845864,1.8813652,714.76,714.07,5.103]
[1736985846160,1.8813652,714.75,714.07,5.103]
[1736985846464,1.8813652,714.74,714.07,5.103]
[1736985846663,1.8813652,714.73,714.07,5.103]
[1736985846859,1.88120983,714.72,714.07,5.103]
[1736985847059,1.1288392,714.71,714.07,5.103]
[1736985847365,0.27979071,714.82,714.07,5.103]
[1736985847565,1.88076705,714.81,714.07,5.103]
[1736985847765,1.88076705,714.8,714.07,5.103]
[1736985847964,1.88076705,714.79,714.07,5.103]
[1736985848165,1.88076705,714.78,714.07,5.103]
[1736985848368,1.88076705,714.77,714.07,5.103]
[1736985848560,0.27979071,714.82,714.07,5.103]
[1736985848760,1.88053268,714.81,714.07,5.103]
[1736985848966,1.88053268,714.8,714.07,5.103]
[1736985849261,1.88053268,714.79,714.07,5.103]
[1736985849462,1.88053268,714.78,714.07,5.103]
[1736985849664,3.08361225,714.77,714.07,5.103]
[1736985849867,1.88053268,714.76,714.07,5.103]
[1736985850068,3.08364256,714.75,714.07,5.103]
[1736985850272,1.88053268,714.74,714.07,5.103]
[1736985850567,1.88053268,714.73,714.07,5.103]
[1736985850771,1.12857682,714.72,714.07,5.103]
[1736985850972,0.27979071,714.82,714.07,5.103]
[1736985851267,1.88006272,714.81,714.07,5.103]
[1736985851465,0.27979071,714.82,714.07,5.103]
[1736985851466,1.12828935,714.8,714.07,5.103]
[1736985851666,0.27979071,714.82,714.07,5.103]
[1736985852066,1.12819155,714.81,714.07,5.103]
[1736985852369,0.27979071,714.82,714.07,5.103]
[1736985852370,1.87989256,714.8,714.07,5.103]
[1736985852575,1.87989256,714.79,714.07,5.103]
[1736985852774,1.87994336,714.78,714.07,5.103]
[1736985852977,1.87995352,714.77,714.07,5.103]
[1736985853179,1.87995352,714.76,714.07,5.103]
[1736985853368,1.87996048,714.75,714.07,5.103]
[1736985853572,1.87997152,714.74,714.07,5.103]
[1736985853772,1.87997644,714.73,714.07,5.103]
[1736985854075,1.87997644,714.72,714.07,5.103]
[1736985854271,1.87997644,714.71,714.07,5.103]
[1736985854469,1.12832225,714.7,714.07,5.103]
[1736985854673,1.32726625,714.82,714.07,5.103]
[1736985854875,3.08293154,714.81,714.07,5.103]
[1736985855076,3.08293154,714.8,714.07,5.103]
[1736985855374,3.08293154,714.79,714.07,5.103]
[1736985855570,3.34007399,714.78,714.07,5.103]
[1736985855775,3.08293154,714.77,714.07,5.103]
[1736985855970,1.88008575,714.76,714.07,5.103]
[1736985856176,1.88008575,714.75,714.07,5.103]
[1736985856375,1.04747554,714.79,714.07,5.103]
[1736985856675,1.88013579,714.74,714.07,5.103]
[1736985857073,1.95465458,714.78,714.07,5.103]
[1736985857572,1.12832618,714.77,714.07,5.103]
[1736985857774,3.08298076,714.76,714.07,5.103]
[1736985857970,1.04747554,714.79,714.07,5.103]
[1736985857971,3.08298076,714.75,714.07,5.103]
[1736985858175,1.04747554,714.73,714.07,5.103]
[1736985859278,1.04747554,714.76,714.07,5.103]
[1736985860074,1.04747554,714.7,714.07,5.103]
[1736985860878,1.04747554,714.68,714.07,5.103]
[1736985861272,1.12820321,714.67,714.07,5.103]
[1736985861473,1.87992337,714.66,714.07,5.103]
[1736985861774,3.08257119,714.65,714.07,5.103]
[1736985862081,3.08257119,714.64,714.07,5.103]
[1736985862272,3.08257119,714.63,714.07,5.103]
[1736985862476,1.87992337,714.62,714.07,5.103]
[1736985862677,1.04747554,714.56,714.07,5.103]
[1736985862877,1.87992337,714.55,714.07,5.103]
[1736985863079,1.87992337,714.54,714.07,5.103]
[1736985863276,1.87992337,714.53,714.07,6.685]
[1736985863582,1.87992337,714.52,714.07,6.685]
[1736985863773,1.87992337,714.51,714.07,6.685]
[1736985863973,1.87973772,714.5,714.07,6.685]
[1736985864273,1.87973772,714.49,714.07,6.685]
[1736985864478,1.87949831,714.48,714.07,6.685]
[1736985864679,1.12794095,714.47,714.07,6.685]
[1736985864877,1.12794095,714.46,714.07,6.685]
[1736985865081,1.04747554,714.52,714.07,6.685]
[1736985865278,1.87990539,714.51,714.07,6.685]
[1736985865479,1.87990539,714.5,714.07,6.685]
[1736985865678,1.87990539,714.49,714.07,6.685]
[1736985865881,1.87990539,714.48,714.07,6.685]
[1736985866077,1.12818503,714.47,714.07,6.685]
[1736985866282,1.12818503,714.46,714.07,6.685]
[1736985866477,1.04747554,714.53,714.07,6.685]
[1736985866676,1.87969796,714.52,714.07,6.685]
[1736985866982,1.87969796,714.51,714.07,6.685]
[1736985867182,1.87969796,714.5,714.07,6.685]
[1736985867385,1.87969796,714.49,714.07,6.685]
[1736985867681,1.87979901,714.48,714.07,6.685]
[1736985867883,3.08260286,714.47,714.07,6.685]
[1736985868185,1.87979901,714.46,714.07,6.685]
[1736985868478,1.87979901,714.45,714.07,6.685]
[1736985868683,1.87979901,714.44,714.07,6.685]
[1736985868878,1.87979901,714.43,714.07,6.685]
[1736985869085,1.87979901,714.42,714.07,6.685]
[1736985869279,1.87979901,714.41,714.07,6.685]
[1736985869488,1.88001196,714.4,714.07,6.685]
[1736985869682,1.88001196,714.39,714.07,6.685]
[1736985869887,1.88001196,714.38,714.07,6.685]
[1736985870079,1.88001196,714.37,714.07,6.685]
[1736985870283,1.88001196,714.36,714.07,6.685]
[1736985870479,1.04747554,714.54,714.07,6.685]
[1736985870480,1.88001196,714.35,714.07,6.685]
[1736985870683,1.04747554,714.54,714.07,6.685]
[1736985870885,1.04747554,714.44,714.07,6.685]
[1736985871085,1.88084144,714.43,714.07,6.19497454]
[1736985871284,1.12874012,714.42,714.07,6.19497454]
[1736985871485,1.12896109,714.41,714.07,6.19497454]
[1736985871684,1.04747554,714.51,714.07,6.19497454]
[1736985871884,1.88110685,714.5,714.07,6.19497454]
[1736985872085,1.04747554,714.51,714.07,6.19497454]
[1736985872990,1.04747554,714.65,714.07,6.19497454]
[1736985873190,1.88143228,714.64,714.07,6.19497454]
[1736985873392,3.08550689,714.63,714.07,6.19497454]
[1736985873585,1.88143228,714.62,714.07,6.19497454]
[1736985873787,1.88143228,714.61,714.07,6.19497454]
[1736985873985,1.88143228,714.6,714.07,6.19497454]
[1736985874190,1.88143228,714.59,714.07,6.19497454]
[1736985874385,1.88143228,714.58,714.07,6.19497454]
[1736985874587,1.88143228,714.57,714.07,6.19497454]
[1736985874788,1.88143228,714.56,714.07,6.19497454]
[1736985875089,1.88183119,714.55,714.07,6.19497454]
[1736985875391,0.27979071,714.82,714.07,6.19497454]
[1736985875392,1.88183119,714.54,714.07,6.19497454]
[1736985875586,1.88183119,714.53,714.07,6.19497454]
[1736985875789,1.04747554,714.78,714.07,6.19497454]
[1736985876090,3.08762896,714.77,714.07,6.19497454]
[1736985876292,3.08762896,714.76,714.07,6.19497454]
[1736985876493,3.08762896,714.75,714.07,6.19497454]
[1736985876693,3.08762896,714.74,714.07,6.19497454]
[1736985876894,1.88294147,714.73,714.07,6.19497454]
[1736985877093,1.88294147,714.72,714.07,6.19497454]
[1736985877291,1.88294147,714.71,714.07,6.19497454]
[1736985877491,0.27979071,714.82,714.07,6.19497454]
[1736985877689,1.88342794,714.81,714.07,6.19497454]
[1736985877890,1.88342794,714.8,714.07,6.19497454]
[1736985878090,1.88342794,714.79,714.07,6.19497454]
[1736985878290,1.13031679,714.78,714.07,6.19497454]
[1736985878491,1.88359853,714.77,714.07,6.19497454]
[1736985878694,0.27979071,714.82,714.07,6.19497454]
[1736985878695,1.13031679,714.76,714.07,6.19497454]
[1736985878890,0.27979071,714.82,714.07,6.19497454]
[1736985879094,1.88386863,714.81,714.07,6.19497454]
[1736985879393,1.88386863,714.8,714.07,6.19497454]
[1736985879597,1.88386863,714.79,714.07,6.19497454]
[1736985879899,1.88386863,714.78,714.07,6.19497454]
[1736985880099,1.88386863,714.77,714.07,6.19497454]
[1736985880294,0.27979071,714.82,714.07,6.19497454]
[1736985880595,1.88489147,714.81,714.07,6.19497454]
[1736985880797,1.88489147,714.8,714.07,6.19497454]
[1736985880993,1.13119718,714.79,714.07,6.19497454]
[1736985881297,0.27979071,714.82,714.07,6.19497454]
[1736985881494,1.13147884,714.81,714.07,6.19497454]
[1736985881694,1.13147884,714.8,714.07,6.19497454]
[1736985881997,0.27979071,714.82,714.07,6.19497454]
[1736985882198,1.88553419,714.81,714.07,6.19497454]
[1736985882400,1.88553419,714.8,714.07,6.19497454]
[1736985882591,1.88556211,714.79,714.07,6.19497454]
[1736985882796,1.13146782,714.78,714.07,6.19497454]
[1736985882997,0.27979071,714.82,714.07,6.19497454]
[1736985883195,1.88589636,714.81,714.07,6.19497454]
[1736985883398,0.27979071,714.82,714.07,6.19497454]
[1736985883399,1.88589636,714.8,714.07,6.19497454]
[1736985883594,1.88589636,714.79,714.07,6.19497454]
[1736985883793,1.88589636,714.78,714.07,6.19497454]
[1736985883994,1.13180245,714.77,714.07,6.19497454]
[1736985884194,1.13180245,714.76,714.07,6.19497454]
[1736985884400,0.27979071,714.82,714.07,6.19497454]
[1736985884602,1.88711074,714.81,714.07,6.19497454]
[1736985884803,1.88711074,714.8,714.07,6.19497454]
[1736985885004,1.88711074,714.79,714.07,6.19497454]
[1736985885202,1.88711074,714.78,714.07,6.19497454]
[1736985885403,1.88711074,714.77,714.07,6.19497454]
[1736985885603,1.88711074,714.76,714.07,6.19497454]
[1736985885805,1.88711074,714.75,714.07,6.19497454]
[1736985886005,1.88711074,714.74,714.07,6.19497454]
[1736985886201,1.88711074,714.73,714.07,6.19497454]
[1736985886402,1.88711074,714.72,714.07,6.19497454]
[1736985886704,1.88711074,714.71,714.07,6.19497454]
[1736985887004,1.88711074,714.7,714.07,6.19497454]
[1736985887205,1.88759612,714.69,714.07,6.19497454]
[1736985887406,1.88759612,714.68,714.07,6.19497454]
[1736985887610,1.88759612,714.67,714.07,6.19497454]
[1736985887804,1.88759612,714.66,714.07,6.19497454]
[1736985888002,1.88759612,714.65,714.07,6.19497454]
[1736985888204,1.88759612,714.64,714.07,6.19497454]
[1736985888508,1.88759612,714.63,714.07,6.19497454]
[1736985888708,1.88759612,714.62,714.07,6.19497454]
[1736985888908,1.88759612,714.61,714.07,6.19497454]
[1736985889208,1.88759612,714.6,714.07,6.19497454]
[1736985889405,1.88759612,714.59,714.07,6.19497454]
[1736985889603,1.88759612,714.58,714.07,6.19497454]
[1736985889802,1.88759612,714.57,714.07,6.19497454]
[1736985890002,0.27979071,714.82,714.07,6.19497454]
[1736985890003,1.88759612,714.56,714.07,6.19497454]
[1736985890206,1.88759612,714.55,714.07,6.19497454]
[1736985890404,0.7550656,714.54,714.07,6.19497454]
[1736985890603,1.88892265,714.53,714.07,6.19497454]
[1736985890801,0.27979071,714.82,714.07,6.19497454]
[1736985890802,1.88892265,714.52,714.07,6.19497454]
[1736985891005,1.88892265,714.51,714.07,6.19497454]
[1736985891208,1.88892265,714.5,714.07,6.19497454]
[1736985891408,1.13385705,714.49,714.07,6.19497454]
[1736985891603,0.27979071,714.82,714.07,6.19497454]
[1736985891807,3.09834081,714.81,714.07,6.19497454]
[1736985892108,3.09834081,714.8,714.07,6.19497454]
[1736985892307,0.27979071,714.82,714.07,6.19497454]
[1736985892509,3.09844721,714.81,714.07,6.19497454]
[1736985892709,3.09844721,714.8,714.07,6.19497454]
[1736985893009,3.09844721,714.79,714.07,6.19497454]
[1736985893204,0.27979071,714.82,714.07,6.19497454]
[1736985893205,3.09844721,714.78,714.07,6.19497454]
[1736985893408,3.09844721,714.77,714.07,6.19497454]
[1736985893608,3.09844721,714.76,714.07,6.19497454]
[1736985893808,1.88954439,714.75,714.07,6.19497454]
[1736985894008,3.09837403,714.74,714.07,6.19497454]
[1736985894208,1.88954439,714.73,714.07,6.19497454]
[1736985894510,1.88954439,714.72,714.07,6.19497454]
[1736985894709,1.88954439,714.71,714.07,6.19497454]
[1736985894910,1.88954439,714.7,714.07,6.19497454]
[1736985895111,1.88954439,714.69,714.07,6.19497454]
[1736985895310,1.88954439,714.68,714.07,6.19497454]
[1736985895510,1.88954439,714.67,714.07,6.19497454]
[1736985895710,1.88954439,714.66,714.07,6.19497454]
[1736985895912,1.88954439,714.65,714.07,6.19497454]
[1736985896110,0.27979071,714.82,714.07,6.19497454]
[1736985896111,1.88954439,714.64,714.07,6.19497454]
[1736985896316,1.88944627,714.63,714.07,6.19497454]
[1736985896512,1.88944627,714.62,714.07,6.19497454]
[1736985896707,1.88944627,714.61,714.07,6.19497454]
[1736985896909,1.88944627,714.6,714.07,6.19497454]
[1736985897212,1.88944627,714.59,714.07,6.19497454]
[1736985897413,1.88944627,714.58,714.07,6.19497454]
[1736985897614,1.88944627,714.57,714.07,6.19497454]
[1736985897814,1.88944627,714.56,714.07,6.19497454]
[1736985898015,1.88944627,714.55,714.07,6.19497454]
[1736985898210,0.27979071,714.82,714.07,6.19497454]
[1736985898211,3.0984105,714.54,714.07,6.19497454]
[1736985898411,3.0984105,714.53,714.07,6.19497454]
[1736985898717,3.0984105,714.52,714.07,6.19497454]
[1736985898910,3.0984105,714.51,714.07,6.19497454]
[1736985899109,3.0984105,714.5,714.07,6.19497454]
[1736985899314,3.0984105,714.49,714.07,6.19497454]
[1736985899510,3.0984105,714.48,714.07,6.19497454]
[1736985899716,1.88944627,714.47,714.07,6.19497454]
[1736985899916,1.88944627,714.46,714.07,6.19497454]
[1736985900116,1.88967314,714.45,714.07,6.19497454]
[1736985900316,1.88967314,714.44,714.07,6.19497454]
[1736985900511,1.88974618,714.43,714.07,6.19497454]
[1736985900714,0.27979071,714.82,714.07,6.19497454]
[1736985900916,3.35570419,714.81,714.07,6.19497454]
[1736985901216,3.35570419,714.8,714.07,6.19497454]
[1736985901416,3.09839298,714.79,714.07,6.19497454]
[1736985901617,3.09839298,714.78,714.07,6.19497454]
[1736985901817,3.09839298,714.77,714.07,6.19497454]
[1736985902018,3.09826985,714.76,714.07,6.19497454]
[1736985902218,3.09826985,714.75,714.07,6.19497454]
[1736985902419,3.09826985,714.74,714.07,6.19497454]
[1736985902612,3.09826985,714.73,714.07,6.19497454]
[1736985902816,3.09826985,714.72,714.07,6.19497454]
[1736985903013,3.09826985,714.71,714.07,6.19497454]
[1736985903218,3.09826985,714.7,714.07,6.19497454]
[1736985903518,3.09826985,714.69,714.07,6.19497454]
[1736985903719,3.09826985,714.68,714.07,6.19497454]
[1736985903914,0.27979071,714.82,714.07,6.19497454]
[1736985903915,3.09826985,714.67,714.07,6.19497454]
[1736985904117,3.09826985,714.66,714.07,6.19497454]
[1736985904317,3.09826985,714.65,714.07,6.19497454]
[1736985904518,3.09826985,714.64,714.07,6.19497454]
[1736985904715,3.09826985,714.63,714.07,6.19497454]
[1736985905020,3.09826985,714.62,714.07,6.19497454]
[1736985905215,3.09826985,714.61,714.07,6.19497454]
[1736985905419,3.09826985,714.6,714.07,6.19497454]
[1736985905619,3.09826985,714.59,714.07,6.19497454]
[1736985905820,3.09826985,714.58,714.07,6.19497454]
[1736985906020,3.09826985,714.57,714.07,6.19497454]
[1736985906314,3.09826985,714.56,714.07,6.19497454]
[1736985906515,3.09826985,714.55,714.07,6.19497454]
[1736985906720,3.09826985,714.54,714.07,6.19497454]
[1736985906927,3.09826985,714.53,714.07,6.19497454]
[1736985907115,3.09826985,714.52,714.07,6.19497454]
[1736985907315,3.09826985,714.51,714.07,6.19497454]
[1736985907621,0.27979071,714.82,714.07,6.19497454]
[1736985907622,3.09826985,714.5,714.07,6.19497454]
[1736985907922,3.09826985,714.49,714.07,6.19497454]
[1736985908221,3.09826985,714.48,714.07,6.19497454]
[1736985908522,3.09826985,714.47,714.07,6.19497454]
[1736985908821,1.88941082,714.46,714.07,6.19497454]
[1736985909019,1.88937467,714.45,714.07,6.19497454]
[1736985909221,1.88937467,714.44,714.07,6.19497454]
[1736985909521,1.13387393,714.43,714.07,6.19497454]
[1736985909714,1.04747554,714.76,714.07,6.19497454]
[1736985909915,3.37780132,714.75,714.07,6.19497454]
[1736985910120,3.09798321,714.74,714.07,6.19497454]
[1736985910323,3.09798321,714.73,714.07,6.19497454]
[1736985910623,3.09798321,714.72,714.07,6.19497454]
[1736985910819,3.09798321,714.71,714.07,6.19497454]
[1736985911015,3.09798321,714.7,714.07,6.19497454]
[1736985911318,3.09798321,714.69,714.07,6.19497454]
[1736985911519,3.09798321,714.68,714.07,6.19497454]
[1736985911716,3.09798321,714.67,714.07,6.19497454]
[1736985911919,1.88925483,714.66,714.07,6.19497454]
[1736985912118,1.88925483,714.65,714.07,6.19497454]
[1736985912318,1.88925483,714.64,714.07,6.19497454]
[1736985912524,1.88925483,714.63,714.07,6.19497454]
[1736985912818,0.27981811,714.75,714.07,6.19497454]
[1736985913015,1.88904441,714.74,714.07,6.19497454]
[1736985913221,1.88904441,714.73,714.07,6.19497454]
[1736985913423,1.88904441,714.72,714.07,6.19497454]
[1736985913621,1.88904441,714.71,714.07,6.19497454]
[1736985913820,1.88904441,714.7,714.07,6.19497454]
[1736985914121,1.88904441,714.69,714.07,6.19497454]
[1736985914322,1.88904441,714.68,714.07,6.19497454]
[1736985914516,1.88904441,714.67,714.07,6.19497454]
[1736985914718,1.88904441,714.66,714.07,6.19497454]
[1736985914919,1.88904441,714.65,714.07,6.19497454]
[1736985915118,1.88904441,714.64,714.07,6.19497454]
[1736985915315,1.88902156,714.63,714.07,6.19497454]
[1736985915519,1.13367049,714.62,714.07,6.19497454]
[1736985915721,1.13367049,714.61,714.07,6.19497454]
[1736985916022,0.27981811,714.75,714.07,6.19497454]
[1736985916221,3.0976713,714.74,714.07,6.19497454]
[1736985916423,3.0976713,714.73,714.07,6.19497454]
[1736985916621,1.13370241,714.72,714.07,6.19497454]
[1736985916823,1.88903405,714.71,714.07,6.19497454]
[1736985917022,1.88903405,714.7,714.07,6.19497454]
[1736985917222,1.88903405,714.69,714.07,6.19497454]
[1736985917424,1.88903405,714.68,714.07,6.19497454]
[1736985917726,1.13364768,714.67,714.07,6.19497454]
[1736985917920,0.27981811,714.75,714.07,6.19497454]
[1736985918124,3.09742113,714.74,714.07,6.19497454]
[1736985918324,3.09742113,714.73,714.07,6.19497454]
[1736985918533,1.88890685,714.72,714.07,6.19497454]
[1736985918724,1.88890562,714.71,714.07,6.19497454]
[1736985919024,1.88890562,714.7,714.07,6.19497454]
[1736985919226,1.88890562,714.69,714.07,6.19497454]
[1736985919524,1.88890562,714.68,714.07,6.19497454]
[1736985919724,1.88890562,714.67,714.07,6.19497454]
[1736985919925,1.88890562,714.66,714.07,6.19497454]
[1736985920226,1.88890562,714.65,714.07,6.19497454]
[1736985920426,1.88890562,714.64,714.07,6.19497454]
[1736985920721,1.88890562,714.63,714.07,6.19497454]
[1736985920922,1.88890562,714.62,714.07,6.19497454]
[1736985921121,1.88890562,714.61,714.07,6.19497454]
[1736985921322,1.88890562,714.6,714.07,6.19497454]
[1736985921517,1.88890562,714.59,714.07,6.19497454]
[1736985921724,1.88890562,714.58,714.07,6.19497454]
[1736985921925,1.88890562,714.57,714.07,6.19497454]
[1736985922126,1.88890562,714.56,714.07,6.19497454]
[1736985922326,1.88890562,714.55,714.07,6.19497454]
[1736985922524,1.88890562,714.54,714.07,6.19497454]
[1736985922720,1.88890562,714.53,714.07,6.19497454]
[1736985922925,1.88890562,714.52,714.07,6.19497454]
[1736985923124,1.88953359,714.51,714.07,6.19497454]
[1736985923426,1.88953359,714.5,714.07,6.19497454]
[1736985923621,1.88953359,714.49,714.07,6.19497454]
[1736985923822,1.88953359,714.48,714.07,6.19497454]
[1736985924024,1.88953359,714.47,714.07,6.19497454]
[1736985924224,0.27981811,714.75,714.07,6.19497454]
[1736985924427,3.09849294,714.74,714.07,6.19497454]
[1736985924627,3.0984829,714.73,714.07,6.19497454]
[1736985924927,3.0984829,714.72,714.07,6.19497454]
[1736985925121,3.0984829,714.71,714.07,6.19497454]
[1736985925321,3.0984829,714.7,714.07,6.19497454]
[1736985925525,3.0984829,714.69,714.07,6.19497454]
[1736985925727,1.8895581,714.68,714.07,6.19497454]
[1736985926028,1.8895581,714.67,714.07,6.19497454]
[1736985926222,0.27981811,714.75,714.07,6.19497454]
[1736985926223,1.8895581,714.66,714.07,6.19497454]
[1736985926427,0.27981811,714.75,714.07,6.19497454]
[1736985926428,1.8895581,714.65,714.07,6.19497454]
[1736985926623,1.8895581,714.64,714.07,6.19497454]
[1736985926928,1.1339801,714.63,714.07,6.19497454]
[1736985927127,0.27981811,714.75,714.07,6.19497454]
[1736985927128,1.13398119,714.62,714.07,6.19497454]
[1736985927323,0.27981811,714.75,714.07,6.19497454]
[1736985927523,1.88972871,714.74,714.07,6.19497454]
[1736985927726,1.88972871,714.73,714.07,6.19497454]
[1736985927922,1.88972871,714.72,714.07,6.19497454]
[1736985928128,1.88972871,714.71,714.07,6.19497454]
[1736985928328,1.88972871,714.7,714.07,6.19497454]
[1736985928523,1.88972871,714.69,714.07,6.19497454]
[1736985928723,1.88972871,714.68,714.07,6.19497454]
[1736985928929,1.88972871,714.67,714.07,6.19497454]
[1736985929130,1.88972871,714.66,714.07,6.19497454]
[1736985929330,1.88972871,714.65,714.07,6.19497454]
[1736985929528,1.88972871,714.64,714.07,6.19497454]
[1736985929723,1.88972871,714.63,714.07,6.19497454]
[1736985929923,1.13409586,714.62,714.07,6.19497454]
[1736985930129,0.27981811,714.75,714.07,6.19497454]
[1736985930331,3.10058089,714.74,714.07,6.19497454]
[1736985930530,3.10058089,714.73,714.07,6.19497454]
[1736985930830,3.10055864,714.72,714.07,6.19497454]
[1736985931027,1.89083527,714.71,714.07,6.19497454]
[1736985931332,1.89083527,714.7,714.07,6.19497454]
[1736985931532,1.89083527,714.69,714.07,6.19497454]
[1736985931832,1.89083527,714.68,714.07,6.19497454]
[1736985932033,1.13476218,714.67,714.07,6.19497454]
[1736985932233,0.27981811,714.75,714.07,6.19497454]
[1736985932428,1.89102711,714.74,714.07,6.19497454]
[1736985932629,1.89102711,714.73,714.07,6.19497454]
[1736985932832,1.89102711,714.72,714.07,6.19497454]
[1736985933032,1.89102711,714.71,714.07,6.19497454]
[1736985933232,1.89102711,714.7,714.07,6.19497454]
[1736985933434,0.27981811,714.75,714.07,6.19497454]
[1736985933435,1.89102711,714.69,714.07,6.19497454]
[1736985933730,1.89102711,714.68,714.07,6.19497454]
[1736985933933,1.89102711,714.67,714.07,6.19497454]
[1736985934235,1.89102711,714.66,714.07,6.19497454]
[1736985934437,1.1348795,714.65,714.07,6.19497454]
[1736985934736,0.27981811,714.75,714.07,6.19497454]
[1736985934935,1.89104379,714.74,714.07,6.19497454]
[1736985935137,1.89104379,714.73,714.07,6.19497454]
[1736985935429,1.8909811,714.72,714.07,6.19497454]
[1736985935635,1.13488915,714.71,714.07,6.19497454]
[1736985935829,0.27981811,714.75,714.07,6.19497454]
[1736985936033,1.89089756,714.74,714.07,6.19497454]
[1736985936336,1.89089756,714.73,714.07,6.19497454]
[1736985936530,1.89089756,714.72,714.07,6.19497454]
[1736985936728,1.89089756,714.71,714.07,6.19497454]
[1736985936934,1.13480451,714.7,714.07,6.19497454]
[1736985937134,1.13480451,714.69,714.07,6.19497454]
[1736985937337,0.27981811,714.75,714.07,6.19497454]
[1736985937536,1.8906175,714.74,714.07,6.19497454]
[1736985937739,1.8906175,714.73,714.07,6.19497454]
[1736985937934,0.27981811,714.75,714.07,6.19497454]
[1736985938140,1.89060234,714.74,714.07,6.19497454]
[1736985938337,1.13462698,714.73,714.07,6.19497454]
[1736985938536,1.13462698,714.72,714.07,6.19497454]
[1736985938737,1.13459006,714.71,714.07,6.19497454]
[1736985939040,1.13460052,714.7,714.07,6.19497454]
[1736985939240,1.13460052,714.69,714.07,6.19497454]
[1736985939540,0.27981811,714.75,714.07,6.19497454]
[1736985939740,1.89050154,714.74,714.07,6.19497454]
[1736985939941,1.89050154,714.73,714.07,6.19497454]
[1736985940139,0.27981811,714.75,714.07,6.19497454]
[1736985940140,1.8904862,714.72,714.07,6.19497454]
[1736985940339,0.27981811,714.75,714.07,6.19497454]
[1736985940340,1.13456517,714.71,714.07,6.19497454]